Cogmind - Beta 15 X1 *** ADVENTURER MODE // 2024.12.03 @ 06:54:09 Player: Raven Result: Destroyed by T4-GGR(R) with Subdweller Machine Gun Performance ------------- Evolutions (0) 0 Regions Visited (2) 400 Robots Destroyed (17) 85 Value Destroyed (366) 366 Prototype IDs (2) 40 Alien Tech Used (0) 0 Bonus (0) 0 TOTAL SCORE: 891 Bonus ------- None Cogmind --------- Core Integrity 0/250 Matter 278/300 Energy 100/100 System Corruption 0% Temperature Cool (0) Movement Treading (340) Ox2 Location -10/Subcaves Parts ------- > --- POWER (1) -------- (None) > --- PROPULSION (2) --- Light Treads Spiked Treads > --- UTILITY (2) ------ Huge Storage Unit Light Armor Plating > --- WEAPON (2) ------- Light Cannon Battle Cannon > --- INVENTORY (25) --- Ion Engine Light Ion Engine Light Treads Light Treads Light Treads Aluminum Leg Aluminum Leg Wheel Wheel High-capacity Matter Pod (0) Sensor Array Improved Terrain Scanner Seismic Detector Makeshift Light Armor Plating Subdweller Laser Subdweller Beam Cannon Subdweller Beam Cannon Subdweller Beam Cannon Battle Rifle Light Cannon Light Cannon Datajack Mining Laser Flamer Peak State ------------ > --- POWER ------------ (None) > --- PROPULSION ------- Light Treads Spiked Treads > --- UTILITY ---------- Huge Storage Unit Light Armor Plating > --- WEAPON ----------- Light Cannon Battle Cannon > --- INVENTORY -------- Ion Engine Light Ion Engine Light Treads Light Treads Light Treads Aluminum Leg Aluminum Leg Wheel Wheel High-capacity Matter Pod Sensor Array Improved Terrain Scanner Seismic Detector Makeshift Light Armor Plating Subdweller Laser Subdweller Beam Cannon Subdweller Beam Cannon Battle Rifle Light Cannon Light Cannon Datajack Mining Laser Flamer [Rating: 11] Favorites ----------- Power Ion Engine Engine Ion Engine Propulsion Light Treads Treads Light Treads Leg Aluminum Leg Wheel Compact Wheel Utility Huge Storage Unit Device Sensor Array Storage Huge Storage Unit Protection Light Armor Plating Weapon Light Cannon Energy Gun Medium Laser Ballistic Gun Light Assault Rifle Ballistic Cannon Light Cannon Special Weapon Mining Laser Build | -11 -10 -10 ------- Run | Yrd Mat Sub Slots Evolved . | . . . Power . | . . . Propulsion . | . . . Utility . | . . . Weapon . | . . . Parts Attached 24 | 7 9 8 Power 2 | 1 . 1 Engine 2 | 1 . 1 Core . | . . . Reactor . | . . . Propulsion 9 | 2 4 3 Treads 5 | . 2 3 Leg 2 | 2 . . Wheel 2 | . 2 . Hover . | . . . Flight . | . . . Utility 5 | 2 2 1 Device 2 | 1 1 . Storage 2 | 1 1 . Processor . | . . . Hackware . | . . . Protection 1 | . . 1 Artifact . | . . . Weapon 8 | 2 3 3 Energy Gun 1 | 1 . . Energy Cannon . | . . . Ballistic Gun 2 | 1 1 . Ballistic Cannon 4 | . 2 2 Launcher . | . . . Special Weapon 1 | . . 1 Impact Weapon . | . . . Slashing Weapon . | . . . Piercing Weapon . | . . . Special Melee Weapon . | . . . Unidentified Prototypes . | . . . Parts Lost 5 | . . 5 Power 2 | . . 2 Propulsion 1 | . . 1 Utility . | . . . Weapon 2 | . . 2 Highest Loss Streak 2 | . . 2 To Critical Strikes . | . . . Average Backups 14 | 1 9 18 Power 1 | . 1 1 Propulsion 4 | 1 3 6 Utility 3 | . 3 4 Weapon 4 | . 2 5 Tool/Special . | . . . Unused Backups 15 | . 1 14 Power 2 | . . 2 Propulsion 1 | . . 1 Utility 4 | . 1 3 Weapon 7 | . . 7 Tool/Special 1 | . . 1 Average Slot Usage (%) 97 | . 100 95 Engine 11 | . 14 10 Treads 18 | . 6 26 Leg 4 | . 10 . Wheel 4 | . 10 1 Device 12 | . 14 10 Storage 14 | . 14 14 Protection 1 | . . 3 Energy Gun 1 | . 2 . Ballistic Gun 7 | . 11 5 Ballistic Cannon 18 | . 14 21 Peak Build Rating 11 | 9 9 11 Average Rating 8 | 5 8 9 On Entrance 5 | . 9 8 Naked Turns . | . . . Heaviest Build 90 | 14 90 90 Greatest Support 40 | 20 40 40 Greatest Overweight (x) 5 | 1 5 3 Average Overweight (x) 1 | . 1 2 Largest Inventory Capacity 25 | 8 25 25 Average Capacity 21 | 6 18 25 Most Carried 24 | 3 17 24 Average Carried 14 | 1 9 18 Final Capacity 25 | 8 25 25 Final Carried 24 | 3 17 24 Class Distribution -------------------- 100% | Mutant Dominant Class ---------------- Mutant | -10/Materials Mutant | -10/Subcaves Resources | -11 -10 -10 ----------- Run | Yrd Mat Sub Matter Collected 854 | 206 315 333 Remotely . | . . . Salvage Created 433 | 12 289 132 Parts 31 | 3 23 5 Haulers Intercepted 2 | . 2 . Recyclers Shooed 1 | . 1 . Parts Field Recycled . | . . . Retrieved Matter . | . . . Parts Self-Destructed 14 | . . 14 Prevented . | . . . Kills | -11 -10 -10 ------- Run | Yrd Mat Sub Combat Hostiles Destroyed 10 | . 5 5 Guns 1 | . 1 . Cannons 9 | . 4 5 Classes Destroyed 9 | 1 6 2 Worker 1 | . 1 . Tunneler 1 | 1 . . Hauler 2 | . 2 . Recycler 1 | . 1 . Watcher 2 | . 2 . Swarmer 3 | . 3 . Grunt 2 | . 2 . Sentry 1 | . . 1 Subdweller 4 | . . 4 Best Kill Streak 7 | 1 7 2 Combat Bots Only 3 | . 3 2 Max Kills in Single Turn 1 | 1 1 1 Gunslinging . | . . . Exploded . | . . . Melee . | . . . Uniques/NPCs Destroyed . | . . . Combat | -11 -10 -10 -------- Run | Yrd Mat Sub Hostile Shots Fired 107 | . 36 71 Missed 25 | . 4 21 Damage Taken 1103 | . 266 837 Core 252 | . 50 202 Absorbed by Shields . | . . . Ignored by Resistances 315 | . 82 233 Core Remaining (%) 100 | 100 . . Volleys Fired 70 | 1 31 38 Largest 2 | 2 2 2 Hottest 120 | 70 60 120 Shots Fired 137 | 2 62 73 Gun 40 | 2 26 12 Cannon 93 | . 36 57 Launcher . | . . . Special 4 | . . 4 Kinetic 132 | 1 62 69 Thermal 5 | 1 . 4 Explosive . | . . . Electromagnetic . | . . . Robot Hit Streak 33 | 1 12 33 Robot Miss Streak 3 | 1 3 1 Penetration Max . | . . . Secondary Targets . | . . . Shots Hit Robots 99 | 1 49 49 Core Hits 31 | 1 19 11 Critical Kills . | . . . Critical Parts Destroyed . | . . . Critical Strikes 3 | . 1 2 Blast 3 | . 1 2 Melee Attacks . | . . . Impact . | . . . Slashing . | . . . Piercing . | . . . Sneak Attacks . | . . . Combat Hostiles . | . . . Follow-up Attacks . | . . . Damage Inflicted 1360 | 12 674 674 Guns 196 | 12 152 32 Cannons 1164 | . 522 642 Explosions . | . . . Melee . | . . . Ramming . | . . . Kinetic 1348 | . 674 674 Thermal 12 | 12 . . Explosive . | . . . Electromagnetic . | . . . Impact . | . . . Slashing . | . . . Piercing . | . . . Highest Corruption . | . . . Average Corruption . | . . . Corruption Purged . | . . . Corruption Blocked . | . . . Overload Shots . | . . . Overflow Damage 8 | . 8 . Projectiles 8 | . 8 . Explosions . | . . . Melee . | . . . Knockbacks 16 | . 8 8 Impact . | . . . Kinetic 14 | . 6 8 Secondary 2 | . 2 . Self-Inflicted Damage . | . . . Shots . | . . . Rammed . | . . . Targets Rammed . | . . . Kicked . | . . . Crushed . | . . . Highest Temperature 188 | 30 88 188 Average Temperature 44 | 18 33 113 Received Heat Transfer 833 | . 141 692 Siege Activations . | . . . Martial Activations . | . . . Shielding Activations . | . . . Robots Disrupted . | . . . Combat Hostiles . | . . . Robots Corrupted . | . . . Combat Hostiles . | . . . Parts Fried . | . . . Impact Corruptions . | . . . Robots Melted . | . . . Combat Hostiles . | . . . Parts Melted . | . . . Heat Transferred 37 | 37 . . Parts Sabotaged . | . . . Parts Stolen . | . . . Parts Stripped . | . . . Power Chain Reactions . | . . . Alert | -11 -10 -10 ------- Run | Yrd Mat Sub Maximum Alert Level . | . . . Low Security (%) 100 | 100 100 . Level 1 . | . . . Level 2 . | . . . Level 3 . | . . . Level 4 . | . . . Level 5 . | . . . High Security . | . . . Max Security . | . . . Peak Influence 120 | 5 120 . Initial . | . . . Average 19 | 1 21 . Influence Increases 205 | 5 180 20 Destroy 0b10 Robot/C 120 | . 100 20 Destroy 0b10 Robot/NC 35 | 5 30 . Destroy Leader 28 | . 28 . Successful Hack 6 | . 6 . Destroy Structure 1 | . 1 . Lose Combat Pursuer 15 | . 15 . Influence Decreases 172 | 5 120 47 Time Decay 165 | 5 120 40 Lost Part 7 | . . 7 Squads Dispatched . | . . . Investigation . | . . . Extermination . | . . . Reinforcement . | . . . Assault . | . . . Garrison . | . . . Intercept . | . . . Searches Triggered . | . . . Construction Impeded . | . . . Haulers Reinforced . | . . . Active Scanning Responses . | . . . Cargo Convoy Interrupts . | . . . Stealth | -11 -10 -10 --------- Run | Yrd Mat Sub Distress Signals 1 | . 1 . Communications Jammed . | . . . Distress Signals . | . . . Times Spotted 22 | . 13 9 Peak Tracking Total 5 | . 5 4 Tactical Retreats 1 | . 1 . Traps | -11 -10 -10 ------- Run | Yrd Mat Sub Traps Triggered . | . . . Indirectly . | . . . Trap Hack Attempts . | . . . Triggered . | . . . Disarmed . | . . . Reprogrammed . | . . . Reused . | . . . Traps Extracted . | . . . Installed . | . . . Triggered . | . . . Machines | -11 -10 -10 ---------- Run | Yrd Mat Sub Machines Disabled . | . . . Max in Single Turn . | . . . Machines Repaired . | . . . Machines Dismantled . | . . . Machines Sabotaged . | . . . Overloaded Fab Kills . | . . . Hacking | -11 -10 -10 --------- Run | Yrd Mat Sub Machines Accessed 5 | . 5 . Terminals 5 | . 5 . Fabricators . | . . . Repair Stations . | . . . Recycling Units . | . . . Scanalyzers . | . . . Garrison Access . | . . . Total Hacks 16 | . 16 . Successful 13 | . 13 . Failed 3 | . 3 . Catastrophic 2 | . 2 . Database Lockouts . | . . . Manual 12 | . 12 . Terminals 16 | . 16 . Fabricators . | . . . Repair Stations . | . . . Recycling Units . | . . . Scanalyzers . | . . . Garrison Access . | . . . Terminal Hacks 3 | . 3 . Record 2 | . 2 . Prototype ID Bank 1 | . 1 . Fabricator Hacks . | . . . Repair Station Hacks . | . . . Recycling Unit Hacks . | . . . Scanalyzer . | . . . Garrison Access Hacks . | . . . Unauthorized Hacks 10 | . 10 . Terminals 10 | . 10 . Botnet 5 | . 5 . Skim 5 | . 5 . Fabricators . | . . . Repair Stations . | . . . Recycling Units . | . . . Scanalyzers . | . . . Garrison Access . | . . . Data Cores Recovered . | . . . Used . | . . . Hacking Detections 4 | . 4 . Full Trace Events . | . . . Feedback Events . | . . . Feedback Blocked . | . . . Robot Schematics Acquired . | . . . Robots Built . | . . . Authchips . | . . . Time . | . . . Total Robot Build Rating . | . . . Part Schematics Acquired . | . . . Parts Built . | . . . Authchips . | . . . Time . | . . . Total Part Build Rating . | . . . Parts Repaired . | . . . Time . | . . . Parts Recycled . | . . . Recycled Matter . | . . . Retrieved Matter . | . . . Retrieved Components . | . . . Parts Scanalyzed . | . . . Part Schematics Acquired . | . . . Parts Damaged . | . . . Bothacking | -11 -10 -10 ------------ Run | Yrd Mat Sub Used RIF Installer . | . . . Robots Hacked . | . . . Non-combat . | . . . Combat . | . . . Robot Hacks Applied . | . . . Relay Couplers Released . | . . . Fabnet Peak Effective % . | . . . Robots Rewired . | . . . Allies Hacked . | . . . Hacks Repelled . | . . . Allies | -11 -10 -10 -------- Run | Yrd Mat Sub Total Allies . | . . . Largest Group . | . . . Highest-Rated Group . | . . . Highest-Rated Ally . | . . . Total Orders . | . . . Ally Attacks . | . . . Total Damage . | . . . Kills . | . . . Allies Corrupted . | . . . Allies Melted . | . . . Intel | -11 -10 -10 ------- Run | Yrd Mat Sub Active Infowar (turns) 1569 | 28 688 853 Sensors 1294 | . 441 853 Terrain 275 | 28 247 . Robot Analysis Total . | . . . Derelict Logs Recovered . | . . . Drone Launches . | . . . Drone Recoveries . | . . . Exploration | -11 -10 -10 ------------- Run | Yrd Mat Sub Turns Passed 1855 | 72 688 1095 Spaces Moved 711 | 48 368 295 Core 5 | 5 . . Treads 322 | . 44 278 Legs 229 | 43 186 . Wheels 155 | . 138 17 Hover . | . . . Flight . | . . . Fastest Speed 50 | 50 120 135 Average Speed 217 | 116 150 318 Slowest Speed 340 | 120 320 340 Overloaded Moves . | . . . Propulsion Burnouts . | . . . Robots Hopped . | . . . Cave-ins Triggered . | . . . Exploration Rate (%) 30 | 4 64 22 Regions Visited 2 Branch Regions 1 Pre-discovered Areas . | . . . Known Exits Taken 1 | . 1 . Unknown Exits Taken 1 | 1 . . Scrap Searched . | . . . Spaces Dug . | . . . Terrain Destroyed . | . . . Melee . | . . . Projectile . | . . . AOE . | . . . Terrain Rammed . | . . . Walls Destroyed . | . . . Machines Disabled . | . . . Actions | -11 -10 -10 --------- Run | Yrd Mat Sub Total 869 | 58 440 371 Wait 31 | . 12 19 Move 709 | 47 367 295 Hop . | . . . Pick Up 28 | 3 15 10 Fast Attach 7 | 7 . . Attach 4 | . . 4 Detach . | . . . Swap 17 | . 12 5 Drop 3 | . 3 . Fire 70 | 1 31 38 Melee . | . . . Ram . | . . . Kick . | . . . Crush . | . . . Escape Stasis . | . . . Rewire . | . . . Trap . | . . . Miscellaneous . | . . . Route ------- -11/Scrapyard -10/Materials (discovered 5 exits: *Mat x3 / [*Min] / *Sub) -10/Subcaves (discovered 1 exit: [*Mat]) History --------- Turn | Location | Event 10 | -11/Scrapyard | Discovered new exit (range 15) 73 | -11/Scrapyard | Entered Materials 266 | -10/Materials | Discovered new exit (range 8) 353 | -10/Materials | Build established: Mutant 429 | -10/Materials | Identified exit to Materials 495 | -10/Materials | Learned location of 2 exits from Mines 541 | -10/Materials | Discovered new exit (range 9) 553 | -10/Materials | Identified exit to Subcaves 641 | -10/Materials | Learned location of 2 exits from Materials 755 | -10/Materials | Learned 2 Materials zone layouts 761 | -10/Materials | Entered Subcaves 762 | -10/Subcaves | Approached by a straggling Scientist 763 | -10/Subcaves | Discovered new exit (range 8) 1336 | -10/Subcaves | Shifting Twisted Machinery released Spk. Treads 1394 | -10/Subcaves | Shifting Twisted Machinery released Sub. Beam Cannon 1550 | -10/Subcaves | Shifting Twisted Machinery released Mak. Light Armor Plating 1568 | -10/Subcaves | Shifting Twisted Machinery released Sub. Beam Cannon 1585 | -10/Subcaves | Core integrity fell below 50% 1594 | -10/Subcaves | Core integrity fell below 20% 1844 | -10/Subcaves | A Subdweller sparked back to life 1856 | -10/Subcaves | Destroyed by T4-GGR(R) with Subdweller Machine Gun Last Messages --------------- 01632_ 1P-L63(R) knocked back. 01636_ Critical hit (Meltdown: +200). 01638_ 1P-L63(R) Sub. Beam Cannon blasted off. 01641_ Acquired 2 matter. 01644_ Subatomizers dissect the Sub. Power Source. 01644_ Acquired 12 matter. 01651_ Acquired 25 matter. 01658_ Subatomizers dissect the Sub. Power Source. 01658_ Acquired Sub. Beam Cannon. 01662_ Acquired Mak. Light Armor Plating. 01663_ Acquired 3 matter. 01672_ Subatomizers dissect the Sub. Power Source. 01673_ Acquired 1 matter. 01682_ Subatomizers dissect the Sub. Power Source, destroying it. 01690_ Acquired Sub. Beam Cannon. 01715_ Acquired 56 matter. 01844_ PV-L8T(R) creaks and sparks as it begins to move. 01844_ PV-L8T(R) destroyed. 01847_ Subatomizers dissect the Sub. Optics. 01851_ Acquired 51 matter. Map ----- +----------------------------------------------------+ | ?????????????????????????????????????????????????? | | ?????????????????????????????????????????????????? | | ?????????????????????????????????????????????????? | | ?????????????????????????????????????????????????? | | ?????????????????????????????????????????????????? | | ?????????????????????????????????????????????????? | | ?????????????????????????????????????????????????? | | ?????????????????????????????????????????????????? | | ?????????????????????????????????????????????????? | | ?????????????????????????????????????????????????? | | ?????????????????????????????????????????????????? | | ?????????????????????????????????????????????????? | | ?????????????????????????????????????????????????? | | ?????????????????????????????????????????????????? | | ?????????????????????????????????????????????????? | | ?????????????????????????????????????????????????? | | ?????????????????????????????????????????????????? | | ?????????????????????????????????????????????????? | | ???????????????????????????##????????????????????? | | ?????????????????????????? ?????????????????????? | | ?????????????????????????? #?????????????????????? | | ?????????????????????????#$##????????????????????? | | ????????????????????????? #????????????????????? | | ##??????????########???## #????????????????????? | | ?????????## ##### # ####??????????????????? | | ???#####?# &&@ ##?????????????????? | | ??## ### & &% #?????????????????? | | "#??# !## & <##?????????????????? | | "#?## ##? R <#??????????????????? | | ### #? R ????????????????? | | ## #?< ## ??????????????? | | #### ### #?? #?? #?????????????? | | ##??## #?# #??####??? #?????????????? | | ##????## ##?## #????????????????????????? | | ##?????####???# #????????????????????????? | | " #????????????## #????????????????????????? | | " ##????????????#### #???????????????????????? | | " "#????????????????# #??????????????????????? | | #?????????????????# #?????????????????????? | | ###????????????????# #????????????????????? | | "#????????????????? #???????????????????? | | ### "#????????????????? #???????????????????? | | ##?# #?????????????????? #???????????????????? | | #??# #?????????????????? ##???????????????????? | | ##??####??????????????????? #????????????????????? | | "###"#?????????????????????? ????????????????????? | | ## ##???????????????????????????????????????????? | | "#???????????????????????????????????????????? | | """#???????????????????????????????????????????? | | ##???????????????????????????????????????????? | +----------------------------------------------------+ Best States ------------- Heat Dissipation 25 Energy Generation 10 Energy Capacity 250 Matter Stores 295 Matter Capacity 300 Sight Range 16 Robot Scan Range 14 Terrain Scan Range 16 Terrain Scan Density 10 Armor Coverage 150 Resistance: KI 20 Resistance: TH 20 Resistance: EX 20 Resistance: EM 20 Resistance: I 20 Resistance: S 20 Resistance: P 20 Evasion (%) 55 Recoil Reduction 2 Offensive Hacking 10 Item Schematics ----------------- None Robot Schematics ------------------ None Fabricated ------------ Nothing Repaired ---------- Nothing Alien Tech Used ----------------- None Achievements -------------- None Challenges ------------ None Game ------ Seed WeightAccelerationMask Manual? 0 Play Time 00:30:58 Cumulative 58.3 hours Start 2024.12.03 @ 06:18:17 End 2024.12.03 @ 06:54:09 Sessions 1 Manual Loads 0 Difficulty Adventurer Special Mode None Game No. 33 Rogue 2 Adventurer 31 Explorer 0 Win Type - Total 0 Types 0/0/0/0/0/0/0/0/0 Lore% 20 Gallery% 32 Achievement% 28 Wizard Run 0 Options --------- Layout 0 ASCII 0 Keyboard 1 Movement Numpad Keybinds 0 Fullscreen 1 Font 24/X11 Map View 113x50 Zoom Use 0% Tactical HUD 1 Map Filters NONE Filters NONE Steam 1 RUN: 8fd7c94f-ff76-48f0-8897-8e3404ae23b3